[Event "4NCL Div 1 2024-25"]
[Site "England"]
[Date "2025.01.25"]
[Round "3.26"]
[White "Jogstad, Martin"]
[Black "Willow, Jonah B"]
[Result "0-1"]
[Annotator "TA"]
[ECO "A34"]
[WhiteElo "2379"]
[BlackElo "2454"]
[PlyCount "74"]
[EventDate "2024.11.23"]
[EventType "team-tourn"]
[EventCountry "ENG"]
[SourceTitle "playchess.com"]
[Source "ChessBase"]
[SourceQuality "1"]
[TimeControl "40/6000+30:3000+30"]

{[%evp 14,74,25,0,10,0,0,0,0,0,13,0,25,32,36,-8,50,-5,8,2,7,16,50,-8,0,-22,-24,-43,-48,-54,-21,-62,-41,-44,-29,-51,-60,-56,-58,-71,-74,-45,-29,-121,-104,-113,-111,-612,-148,-131,-131,-188,-135,-437,-459,-422,-419,-461,-442,-819,-814,-29996,-29997]} 1. c4 {[%emt 0:10:03]} c5 {[%emt 0:10:47]} 2. g3 {[%emt 0:00:05]} Nf6 {[%emt 0:00:38]} 3. Bg2 {[%emt 0:00:09]} d5 {[%emt 0:00:44]} 4. cxd5 {[%emt 0:00:27]} Nxd5 {[%emt 0:00:06]} 5. Nc3 {[%emt 0:01:16]} Nc7 {[%emt 0:00:24]} 6. Nf3 {[%emt 0:06:35]} Nc6 {[%emt 0:00:17]} 7. O-O {[%emt 0:03:13]} e5 {[%emt 0:00:18]} 8. a3 {[%emt 0:00:08]} Rb8 {[%emt 0:01:44]} 9. Rb1 {[%emt 0:04:58][%cal Ob2b4]} f6 {[%emt 0:06:03]} 10. d3 {[%emt 0:03:15]} Be7 {[%emt 0:04:37] The position is equal.} 11. Be3 {[%emt 0:21:30]} Bd7 {[%emt 0:17:48]} 12. Nd2 {[%emt 0:20:02][%cal Ob2b4]} a5 {[%emt 0:21:09]} 13. f4 {[%emt 0:01:42]} O-O {[%emt 0:01:30]} 14. Nde4 {[%emt 0:03:57]} Ne6 {[%emt 0:04:23]} (14... exf4 $11 15. Bxf4 Be8) 15. Nd5 {[%emt 0:03:00]} ({White should play} 15. f5 $14 Ned4 16. g4) 15... exf4 $11 {[%emt 0:00:50]} 16. Nxf4 {[%emt 0:05:18]} Ned4 {[%emt 0:03:56] Repels Qb3+} 17. Bf2 {[%emt 0:02:17]} Kh8 {[%emt 0:11:17][%cal Oa5a4]} 18. h3 {[%emt 0:05:02] [#]} ({Better is} 18. e3 $14 Ne6 19. Nxe6 Bxe6 20. d4) 18... a4 $1 {[%emt 0:04:07]} 19. e3 {[%emt 0:02:43]} Nb3 {[%emt 0:00:29]} 20. Nd2 {[%emt 0:02:28]} Nxd2 {[%emt 0:01:18]} 21. Qxd2 {[%emt 0:00:01]} Ne5 {[%emt 0:00:19]} 22. d4 {[%emt 0:01:08]} cxd4 {[%emt 0:05:19]} 23. exd4 {[%emt 0:00:26]} Nc4 {[%emt 0:00:06]} 24. Qe2 {[%emt 0:02:35]} b5 {[%emt 0:00:29]} 25. Rfe1 {[%emt 0:05:00]} Bd6 {[%emt 0:00:20]} 26. Ne6 {[%emt 0:00:29] Prevents Qc7} Bxe6 {[%emt 0:00:14]} 27. Qxe6 {[%emt 0:00:02]} f5 {[%emt 0:14:48]} 28. Bd5 {[%emt 0:02:23]} (28. Qd5 $11 {remains equal.}) 28... Qc7 {[%emt 0:00:00]} 29. Kg2 {[%emt 0:02:43]} f4 {[%emt 0:00:00]} 30. g4 $2 {[%emt 0:00:56][%mdl 8192] [#]} (30. gxf4 $17 Rxf4 31. Bg3) 30... Ne3+ $2 {[%emt 0:00:00]} 31. Bxe3 $17 {[%emt 0:01:08] [#] Bf2 would now be deadly.} Rbe8 $1 {[%emt 0:00:00]} 32. Rbc1 {[%emt 0:00:28]} (32. Qxe8 $17 Rxe8 33. Bxf4) 32... Qd8 $19 {[%emt 0:00:55]} 33. Bf2 $2 {[%emt 0:01:00][%mdl 8192] This move loses the game for White.} (33. Qxe8 $17 Rxe8 34. Bf2) 33... Rxe6 {[%emt 0:00:07]} 34. Bxe6 {[%emt 0:00:30]} f3+ {[%emt 0:00:11]} 35. Kg1 {[%emt 0:00:23]} Qb8 {[%emt 0:00:41] Strongly threatening ...Bg3.} 36. Rc6 {[%emt 0:00:30]} (36. Rc2 $142) 36... Bg3 {[%emt 0:00:04] ( -> ...Bxf2+)} 37. Rec1 {[%emt 0:00:38]} Bxf2+ {[%emt 0:00:07] Weighted Error Value: White=1.01/Black=0.28 (precise) .  Loses game:     	White=2     	---        Missed win:     	---       	Black=1      Mistake:       	White=5     	Black=1      Inaccurate:     	White=3     	Black=2      OK:         	White=7     	Black=14     Best:        	White=1     	Black=1} 0-1

[Event "4NCL Div 1 2024-25"]
[Site "England"]
[Date "2025.01.25"]
[Round "3.27"]
[White "Czopor, Maciej"]
[Black "Bottazzi, Ulysse"]
[Result "1/2-1/2"]
[Annotator "TA"]
[ECO "E90"]
[WhiteElo "2383"]
[BlackElo "2344"]
[PlyCount "73"]
[EventDate "2024.11.23"]
[EventType "team-tourn"]
[EventCountry "ENG"]
[SourceTitle "playchess.com"]
[Source "ChessBase"]
[SourceQuality "1"]
[TimeControl "40/6000+30:3000+30"]

{[%evp 11,73,35,27,43,37,38,46,45,53,49,50,50,82,77,87,87,81,23,43,44,67,54,62,62,79,87,80,89,89,80,80,91,81,73,70,72,77,63,72,83,110,94,84,94,193,202,178,183,145,49,69,52,57,12,25,7,8,0,0,0,0,0,0,0]} 1. c4 {[%emt 0:10:03]} Nf6 {[%emt 0:10:34]} 2. Nc3 {[%emt 0:00:07]} g6 {[%emt 0:00:31]} 3. e4 {[%emt 0:00:19]} d6 {[%emt 0:00:32]} 4. d4 {[%emt 0:00:10][%cal Bd2d4,Bd4d5][%mdl 32]} Bg7 {[%emt 0:00:37]} 5. Nf3 {[%emt 0:00:12]} O-O {[%emt 0:00:47]} 6. Bd3 {[%emt 0:00:04]} Bg4 {[%emt 0:03:27]} 7. Be2 {[%emt 0:00:07]} e5 {[%emt 0:09:27]} 8. d5 {[%emt 0:00:39]} a5 {[%emt 1:18:35][%cal Ba7a5,Ba5a4][%mdl 32]} 9. Be3 {[%emt 0:04:19] White is slightly better.} Na6 {[%emt 0:00:00]} 10. Nd2 {[%emt 0:05:28]} Bxe2 {[%emt 0:00:00]} 11. Qxe2 {[%emt 0:00:11]} Nc5 {[%emt 0:00:00]} 12. O-O-O {[%emt 0:13:48]} a4 {[%emt 0:00:00]} 13. a3 {[%emt 0:02:11]} c6 {[%emt 0:00:00]} 14. Kb1 {[%emt 0:03:03]} (14. Bxc5 $16 {aiming for Be3.} dxc5 15. Kb1) 14... Qa5 $11 {[%emt 0:00:00]} 15. f3 {[%emt 0:05:08]} Rab8 {[%emt 0:00:00]} 16. Rc1 {[%emt 0:00:57]} Rfc8 {[%emt 0:00:00]} 17. g4 {[%emt 0:02:34]} b5 {[%emt 0:00:00] Hoping for ...b4.} 18. cxb5 {[%emt 0:03:09]} ({But not} 18. Bxc5 dxc5 19. dxc6 b4 20. axb4 Qxb4 $11) 18... cxb5 {[%emt 0:00:00]} 19. Na2 {[%emt 0:00:37]} Na6 {[%emt 0:00:00] Prevents Nb4} 20. Rxc8+ {[%emt 0:00:30]} Rxc8 {[%emt 0:00:00]} 21. Rc1 {[%emt 0:00:14]} Rxc1+ {[%emt 0:00:00]} 22. Nxc1 {[%emt 0:03:16]} h5 {[%emt 0:00:00]} 23. h3 {[%emt 0:00:56][%cal Bh2h3,Bh3g4][%mdl 32]} hxg4 {[%emt 0:00:00]} 24. hxg4 {[%emt 0:00:04]} Nd7 {[%emt 0:00:00]} 25. Na2 {[%emt 0:07:34]} Bf8 {[%emt 0:02:41]} 26. Nc3 {[%emt 0:00:56]} Nc7 {[%emt 0:01:48]} 27. Bg5 {[%emt 0:06:09]} Nc5 {[%emt 0:03:25]} (27... Nb6 $16) 28. Bd8 $18 {[%emt 0:01:15]} N5a6 {[%emt 0:01:21] [#]} 29. Qf2 {[%emt 0:07:52] Dodges Qb6} Nc5 {[%emt 0:00:24] [#]} 30. Na2 {[%emt 0:17:10] White is more active.} (30. Qf1 $1 $16) 30... Qa7 {[%emt 0:00:41]} 31. Nb4 {[%emt 0:01:05]} N7a6 {[%emt 0:00:29]} 32. Nc6 {[%emt 0:03:55]} Qb7 {[%emt 0:00:01]} 33. Ba5 {[%emt 0:05:26]} Nb8 {[%emt 0:00:21] The position is equal.} 34. Nxb8 {[%emt 0:03:02]} Qxb8 {[%emt 0:00:01]} 35. Qe3 {[%emt 0:00:25]} Be7 {[%emt 0:01:06]} 36. Bb4 {[%emt 0:02:01]} Qd8 {[%emt 0:00:40]} 37. Qe2 {[%emt 0:01:36] Weighted Error Value: White=0.09 (flawless) /Black=0.08 (flawless) .  Mistake:       	White=2     	Black=1      Inaccurate:     	White=1     	Black=2      OK:         	White=14    	Black=12     Best:        	White=2     	Black=2} 1/2-1/2

[Event "4NCL Div 1 2024-25"]
[Site "England"]
[Date "2025.01.25"]
[Round "3.28"]
[White "Pein, Malcolm"]
[Black "Derakhshani, Borna"]
[Result "0-1"]
[Annotator "TA"]
[ECO "A11"]
[WhiteElo "2284"]
[BlackElo "2355"]
[PlyCount "120"]
[EventDate "2024.11.23"]
[EventType "team-tourn"]
[EventCountry "ENG"]
[SourceTitle "playchess.com"]
[Source "ChessBase"]
[SourceQuality "1"]
[TimeControl "40/6000+30:3000+30"]

{[%evp 11,120,0,10,0,12,-29,9,0,27,24,38,42,62,59,51,31,60,27,37,44,56,49,37,42,37,24,54,0,8,8,8,0,0,-11,0,-47,-56,-55,-74,-62,-23,-66,-21,-35,-27,-231,-229,-245,-240,-243,-234,-238,-245,-254,-262,-320,-297,-327,-358,-314,-158,-158,-97,-90,-101,-132,-133,-192,0,-217,-218,-248,-262,-262,-234,-258,-258,-538,-502,-479,-472,-510,-459,-478,-431,-652,-648,-628,-623,-818,-789,-779,-724,-712,-630,-666,-470,-658,-650,-633,-625,-1440,-1336,-1873,-1532,-29983,-29960,-29983,-29984,-29989,-29973]} 1. Nf3 {[%emt 0:10:06]} d5 {[%emt 0:10:39]} 2. c4 {[%emt 0:00:46]} e6 {[%emt 0:00:40]} 3. e3 {[%emt 0:02:35]} Nf6 {[%emt 0:00:14]} 4. Nc3 {[%emt 0:00:12]} Nbd7 {[%emt 0:01:49]} 5. b3 {[%emt 0:01:34]} c6 {[%emt 0:02:15]} 6. Bb2 {[%emt 0:00:07]} Bd6 {[%emt 0:00:12]} 7. Qc2 {[%emt 0:00:29] A11: English Opening: 1...c6.} Qe7 {[%emt 0:03:05]} 8. Rg1 {[%emt 0:06:49]} h6 {[%emt 0:11:32]} 9. g4 {[%emt 0:10:28] The position is equal.} Ne5 {[%emt 0:09:29]} 10. Nxe5 {[%emt 0:01:01]} Bxe5 {[%emt 0:00:04]} 11. f4 {[%emt 0:10:19]} Bd6 {[%emt 0:05:09]} 12. O-O-O {[%emt 0:01:46]} Bd7 $146 {[%emt 0:11:56]} (12... Ba3 13. h4 Bxb2+ 14. Qxb2 dxc4 15. bxc4 e5 16. g5 Ng4 17. Be2 h5 18. Rde1 O-O {0-1 Guerra Bastida,D (2326)-Gonzalez Perez,A (2461) Ourense Campus 4th 2017 (5.5)}) 13. h4 {[%emt 0:06:35]} h5 {[%emt 0:19:18]} 14. gxh5 {[%emt 0:07:37]} Nxh5 {[%emt 0:00:17]} 15. Be2 {[%emt 0:02:02]} f5 {[%emt 0:10:58]} 16. Rg5 {[%emt 0:16:44]} Nf6 {[%emt 0:01:09]} 17. Rdg1 {[%emt 0:00:27]} Rh7 {[%emt 0:00:22]} 18. Kb1 {[%emt 0:01:08]} d4 {[%emt 0:02:22]} 19. exd4 {[%emt 0:04:21][%csl Oe6,Og7] Black has weak pawns} (19. c5 $14 Bc7 20. Na4 (20. exd4 Bxf4 21. Rg6 O-O-O $15)) 19... Bxf4 $11 {[%emt 0:00:07]} 20. R5g2 {[%emt 0:00:35]} O-O-O {[%emt 0:00:55][%cal Oc8b8]} 21. Bf3 {[%emt 0:01:18]} Kb8 {[%emt 0:00:41]} 22. Ne2 {[%emt 0:05:46]} Bd6 {[%emt 0:01:04][%cal Od8g8]} 23. Nc1 {[%emt 0:02:28]} (23. Qc1 $11 {is more appropriate.}) 23... Rg8 $1 $15 {[%emt 0:02:08]} 24. Nd3 {[%emt 0:06:35]} Rxh4 {[%emt 0:00:18]} 25. Ne5 {[%emt 0:00:06]} Rh3 {[%emt 0:02:54]} 26. Qd1 {[%emt 0:02:57][%cal Od4d5]} Be8 {[%emt 0:01:50]} 27. Qf1 {[%emt 0:02:03][%cal Od4d5]} Rh6 {[%emt 0:07:30]} 28. Ng6 $2 {[%emt 0:03:52]} (28. Qd3 $11 {and White is okay.}) 28... Bxg6 $19 {[%emt 0:00:25]} 29. Rxg6 {[%emt 0:00:02]} Rxg6 {[%emt 0:00:04]} 30. Rxg6 {[%emt 0:00:07][%cal Od4d5]} Qf7 $1 {[%emt 0:00:19]} 31. Rg5 {[%emt 0:02:27]} Bf4 {[%emt 0:01:25][%csl LRd2,LRg5]} 32. Rg2 {[%emt 0:00:19][%cal Of3c6]} g5 {[%emt 0:00:11]} 33. Re2 {[%emt 0:00:14]} Bc7 {[%emt 0:01:11]} (33... g4 34. Bxc6 Bc7 35. Bh1 $19) 34. Qe1 {[%emt 0:00:45]} g4 {[%emt 0:00:11]} 35. Bh1 {[%emt 0:01:13][%cal Od4d5]} g3 {[%emt 0:02:24]} (35... f4 $19 36. Rxe6 f3) 36. d5 $17 {[%emt 0:01:20]} exd5 {[%emt 0:02:45]} (36... Ne4 $142 $1 37. dxe6 (37. dxc6 Qh7 $17) 37... Qh7 (37... Qxe6 38. d3 $16)) 37. Re7 {[%emt 0:00:52]} Qf8 {[%emt 0:00:34]} 38. Qe6 {[%emt 0:00:48][%csl LRd5,LRf5,LRf6]} Ne4 {[%emt 0:00:26]} (38... g2 $6 39. Bxg2 Ne4 40. Be5 Bxe5 (40... Nxd2+ $2 41. Kc2 $18) 41. Qxe5+ Ka8 42. cxd5 Nxd2+ 43. Kb2 $11) 39. cxd5 {[%emt 0:00:15] [#]} (39. Be5 $17 {is a better defense.} Bxe5 (39... Nxd2+ 40. Kc2 $14) 40. Qxe5+ Ka8 41. cxd5) 39... Qc8 $2 {[%emt 0:00:32]} (39... Nxd2+ 40. Kc2 Ne4 (40... g2 41. Bxg2 Ne4 42. Bg7 $16) 41. Be5 Bxe5 42. Qxe5+ Ka8 43. dxc6 bxc6 44. Qc7 $18) (39... g2 40. Bxg2 Nc5 (40... Nxd2+ 41. Ka1 $16) 41. Qf6 $11) (39... Nc5 $1 $19 {[%cal Rc5e6]} 40. Qf7 Qxf7 41. Rxf7 f4 (41... g2 42. Bxg2 Rxg2 43. Rf8+ $11)) 40. Qf7 {[%emt 0:00:34]} (40. Be5 $11 Bxe5 (40... Nxd2+ $2 41. Ka1 $18) 41. Qxe5+ Ka8 42. d3 cxd5 (42... g2 43. Bxg2 cxd5 44. dxe4 $18) 43. dxe4 dxe4 (43... g2 $2 44. Bxg2 dxe4 45. Qe6 $18) 44. Rc7) 40... Nd6 $19 {[%emt 0:00:33]} ({Not} 40... Nxd2+ 41. Kc2 cxd5 (41... g2 42. Rxc7 g1=Q 43. Rxc8+ Kxc8 44. Qe6+ Kd8 45. Bf6+ Kc7 46. dxc6 $16) 42. Kd1 $11) 41. Qh7 {[%emt 0:32:25][%cal Oe7c7]} g2 {[%emt 0:26:50]} 42. Bxg2 {[%emt 0:00:22]} Rxg2 {[%emt 0:00:23]} 43. Be5 {[%emt 0:03:43][%cal Oe7c7] [#] and Rxc7! would now be decisive} a5 $1 {[%emt 0:06:36]} (43... cxd5 $2 {perishes.} 44. Rxc7 Qxc7 (44... Rg1+ $2 45. Kb2 $18) 45. Qh8+ Nc8 46. Bxc7+ Kxc7 47. Qh7+ Kd8 48. Qxf5 $18 (48. Qxb7 Rxd2 49. Qb5 Nb6 $18)) 44. Rd7 $2 {[%emt 0:08:23]} (44. dxc6 bxc6 (44... Rxd2 45. Bf4 $11) 45. Kc2) 44... Rg1+ {[%emt 0:00:59]} (44... Qe8 $2 45. Re7 Qc8 (45... Rg1+ 46. Kb2 $11) 46. dxc6 bxc6 (46... Rxd2 47. Bf4 $11) 47. Kc2 $19) 45. Kc2 {[%emt 0:01:39]} cxd5 {[%emt 0:00:22]} 46. Kd3 {[%emt 0:01:25][%cal Oh7e7]} Nb5 {[%emt 0:02:39]} 47. Qe7 {[%emt 0:03:24]} Rg8 {[%emt 0:02:08] Prevents Rd8.} 48. Bxc7+ {[%emt 0:02:08]} (48. Rxd5 $142 Re8 49. Bxc7+ Nxc7 50. Qd6) 48... Nxc7 {[%emt 0:00:10]} 49. Qd6 {[%emt 0:00:09] [#]} Rg6 $3 {[%emt 0:02:39][%mdl 512]} 50. Qe7 {[%emt 0:00:15]} (50. Qxg6 Qxd7) 50... Rg3+ {[%emt 0:00:20]} 51. Ke2 {[%emt 0:01:04]} Rg8 {[%emt 0:00:06]} 52. Kd1 {[%emt 0:01:08]} Re8 {[%emt 0:00:51]} 53. Qf7 {[%emt 0:00:06][%cal Od7c7]} Rd8 {[%emt 0:01:00]} 54. Re7 {[%emt 0:00:23]} Rf8 {[%emt 0:04:15]} 55. Qg7 {[%emt 0:00:13][%cal Oe7c7]} Re8 {[%emt 0:00:08]} 56. Rd7 {[%emt 0:00:57]} f4 {[%emt 0:01:38]} 57. Rf7 {[%emt 0:00:14]} Na6 {[%emt 0:00:25] Hoping for ...Nb4.} 58. Qf6 {[%emt 0:00:32]} Nb4 {[%emt 0:01:11][%csl Gb4][%cal Rc8c2] Black mates.} 59. Qxf4+ {[%emt 0:00:06]} Ka8 {[%emt 0:00:09][%csl Gb4][%cal Rc8c2]} 60. Rc7 {[%emt 0:00:10]} Qe6 {[%emt 0:00:06] Weighted Error Value: White=0.40/Black=0.17 (very precise)   Loses game:     	White=2     	---        Missed win:     	---       	Black=1      Mistake:       	White=5     	Black=2      Inaccurate:     	White=3     	Black=5      OK:         	White=13    	Black=15     Best:        	White=5     	Black=4      Strong:       	---       	Black=3} 0-1

[Event "4NCL Div 1 2024-25"]
[Site "England"]
[Date "2025.01.25"]
[Round "3.29"]
[White "O`Donnell, Conor"]
[Black "Maycock Bates, David Henry"]
[Result "1-0"]
[Annotator "TA"]
[ECO "A13"]
[WhiteElo "2293"]
[BlackElo "2290"]
[PlyCount "111"]
[EventDate "2024.11.23"]
[EventType "team-tourn"]
[EventCountry "ENG"]
[SourceTitle "playchess.com"]
[Source "ChessBase"]
[SourceQuality "1"]
[TimeControl "40/6000+30:3000+30"]

{[%evp 14,111,11,10,14,9,51,28,33,33,31,-5,-5,-12,12,-24,71,56,57,0,0,0,26,0,-29,-61,-50,-147,-120,-124,-12,-54,-44,-57,-42,-29,-38,-63,53,-25,-47,-41,-24,-18,-17,-25,-23,-39,-60,-120,-62,-53,87,0,71,75,109,89,88,0,0,0,94,88,143,69,178,175,166,146,160,138,125,116,150,153,144,156,151,146,195,200,200,197,182,183,272,272,312,311,331,357,438,451,414,393,467,460,687,631]} 1. Nf3 {[%emt 0:11:39]} d5 {[%emt 0:10:36]} 2. c4 {[%emt 0:00:03]} e6 {[%emt 0:00:21]} 3. g3 {[%emt 0:00:14]} Nf6 {[%emt 0:00:13]} 4. Bg2 {[%emt 0:00:04]} d4 {[%emt 0:03:16]} 5. e3 {[%emt 0:01:24]} c5 {[%emt 0:00:45]} 6. exd4 {[%emt 0:00:24]} cxd4 {[%emt 0:00:24]} 7. O-O {[%emt 0:00:18]} Nc6 {[%emt 0:00:53]} 8. d3 {[%emt 0:00:17]} Be7 {[%emt 0:00:23] A13: English Opening: 1...e6.} 9. Na3 {[%emt 0:02:09]} e5 {[%emt 0:22:40]} 10. Re1 {[%emt 0:04:00]} Nd7 {[%emt 0:02:50] White has an edge.} 11. Nc2 {[%emt 0:13:01][%cal Ob2b4]} a5 {[%emt 0:01:18]} 12. b3 {[%emt 0:03:52][%cal Of3d4]} O-O {[%emt 0:01:40]} 13. Rb1 {[%emt 0:04:49]} f6 {[%emt 0:17:37] is the legacy move (13...Rb8).} 14. Nh4 {[%emt 0:06:29]} f5 $146 {[%emt 0:14:49]} (14... Nc5 $11 {keeps the balance.}) (14... Nc5 15. Ba3 g5 16. Nf3 Bf5 17. Bxc5 Bxc5 18. a3 Qd6 19. h4 h6 20. hxg5 hxg5 {½-½ Paunovic,D (2480)-Martinovic,S (2386) SRB-chT Palic 2014 (2.5)}) 15. Bd5+ $16 {[%emt 0:01:23]} Kh8 {[%emt 0:00:02]} 16. Ng2 {[%emt 0:03:57]} (16. Qh5 $14 Bxh4 17. Qxh4) 16... Nb4 $11 {[%emt 0:05:07]} 17. Nxb4 {[%emt 0:00:32]} Bxb4 {[%emt 0:00:03]} 18. Bd2 {[%emt 0:09:46]} (18. Re2 $1) 18... f4 {[%emt 0:08:23]} 19. Rb2 {[%emt 0:06:42]} Bd6 {[%emt 0:05:19]} 20. Bc1 {[%emt 0:11:48]} (20. gxf4 $15 exf4 21. f3) 20... Nf6 $1 $17 {[%emt 0:03:22]} 21. Bf3 {[%emt 0:01:26]} fxg3 {[%emt 0:00:36]} (21... Qd7 $17 22. c5 Bc7 (22... Bxc5 23. Rxe5 Bd6 24. Rg5 $14)) 22. hxg3 {[%emt 0:01:46]} Qc7 {[%emt 0:04:35]} 23. Rc2 {[%emt 0:03:46][%cal Oc4c5]} Bb4 {[%emt 0:02:20]} 24. Bd2 {[%emt 0:02:28]} Bc5 {[%emt 0:01:36]} 25. Qe2 {[%emt 0:02:30][%cal Oa2a3] [#]} e4 {[%emt 0:02:34] Black plays in the center} 26. dxe4 {[%emt 0:02:36] [#]} (26. Bxe4 $14 Nxe4 27. Qxe4) 26... d3 $1 $11 {[%emt 0:00:01]} 27. Qxd3 {[%emt 0:01:56] [#]} (27. Bf4 $2 Qd8 (27... Qxf4 $2 28. Nxf4 dxe2 29. e5 $19) 28. Qd2 dxc2 $19) 27... Bxf2+ $1 {[%emt 0:00:04]} 28. Kxf2 {[%emt 0:05:06]} Ng4+ {[%emt 0:00:03]} 29. Ke2 {[%emt 0:00:22]} Ne5 $1 {[%emt 0:00:02]} 30. Qd5 {[%emt 0:02:20]} (30. Bf4 $2 Rxf4 31. gxf4 Nxd3 32. Kxd3 g5 $19) 30... Rxf3 {[%emt 0:00:02]} 31. Ne3 {[%emt 0:06:54]} (31. Bf4 Bg4 32. Kd2 (32. Bxe5 $2 Rf5+ 33. Ke3 Rxe5 $19) 32... Rd8 33. Bxe5 Rxd5+ 34. exd5 Qc5 $17) ({White should play} 31. Rf1 $1 $15 Bg4 32. Rxf3 Bxf3+ 33. Kf1) 31... Rf8 {[%emt 0:00:16]} (31... Rxg3 $17 {aiming for ...Bh3.} 32. c5 Nf3) 32. Bc3 $15 {[%emt 0:00:46]} Ng4 {[%emt 0:00:03] [#]} (32... Nf3 $2 33. Rf1 $18) (32... Bg4+ $1 $15 {keeps the upper hand.} 33. Nxg4 Nxg4) 33. Rf1 {[%emt 0:01:05] Some like it hot} (33. Qg5 $1 $16 Nxe3 34. Kxe3) 33... Rxf1 {[%emt 0:00:53]} (33... Be6 $1 $11 34. Rxf8+ (34. Qxe6 Nxe3 35. Rxf8+ Rxf8 $11) 34... Rxf8 35. Qxe6 Nxe3 36. Kxe3 Qxg3+ 37. Kd2 Qg1) 34. Nxf1 $40 {[%emt 0:00:02][%mdl 128] White attacks with force.} Bd7 {[%emt 0:02:21]} 35. Qg5 {[%emt 0:00:22][%csl Gc3][%cal Rg5g7]} Be6 {[%emt 0:00:42]} 36. Rd2 {[%emt 0:01:33]} (36. Ne3 $16 Nxe3 37. Kxe3) 36... Rf8 $1 $11 {[%emt 0:01:08][%cal Oe6c4]} 37. Ne3 {[%emt 0:00:40]} (37. Qxa5 Bxc4+ (37... Qf7 $2 38. Nh2 $19) 38. bxc4 Qxc4+ 39. Kd1 Qxf1+ (39... Rxf1+ $2 40. Kc2 $19) 40. Kc2 Ne3+ 41. Kb3 Qc4+ (41... Nc4 42. Bxg7+ Kxg7 43. Qc7+ Kg6 44. Qxc4 $11) 42. Ka3 b5 $19 (42... Qxe4 43. Bxg7+ Kg8 44. Kb3 $19)) 37... Nxe3 {[%emt 0:00:13]} (37... h6 $1 $11 38. Nd5 (38. Qxa5 $2 Qxg3 39. Bd4 Nxe3 $19) 38... Qf7) 38. Kxe3 $16 {[%emt 0:00:19]} (38. Qxe3 $2 Bg4+ 39. Ke1 Rf3 $19) 38... Qf7 {[%emt 0:00:15]} (38... a4 $142) 39. Kd3 {[%emt 0:00:28] Active counter play!} ({Much weaker is} 39. Bxa5 $6 Qf3+ 40. Kd4 Kg8 $11) (39. Rd8 $16 {[%cal Og5g7] and Qxg7+! would now be decisive} Qf2+ 40. Kd3 Rxd8+ 41. Qxd8+ Bg8 42. Qg5 (42. Bxa5 Qxg3+ 43. Kc2 Qg2+ 44. Bd2 Qxe4+ 45. Kb2 h5 $11) 42... Qf1+ 43. Kc2 Qf2+ 44. Kb1 Qg1+ 45. Kb2 Qf2+ 46. Ka3 Qf8+ 47. Ka4) 39... Qf3+ {[%emt 0:01:36]} (39... a4 $14) 40. Kc2 $18 {[%emt 0:00:14][%csl Gc3][%cal Rg5g7]} Qxe4+ {[%emt 0:00:02] Black is weak on the dark squares} 41. Kb2 {[%emt 0:50:41][%csl Gc3][%cal Rg5g7]} Qg6 {[%emt 0:24:25]} 42. Qxg6 {[%emt 0:00:00]} hxg6 {[%emt 0:00:03]} 43. Bxa5 $16 {[%emt 0:00:00][%mdl 4096] Endgame KRB-KRB. White is a pawn up.} Rf3 {[%emt 0:01:05]} 44. Rd8+ {[%emt 0:00:00]} Kh7 {[%emt 0:00:03]} 45. Rb8 {[%emt 0:00:00]} Rf7 {[%emt 0:00:16]} 46. Bd2 {[%emt 0:00:00] Prevents g5} g5 {[%emt 0:02:14]} (46... Bh3 $16 47. Bf4 Bg2) 47. Bxg5 $18 {[%emt 0:00:00]} Kg6 {[%emt 0:00:07]} 48. Bf4 {[%emt 0:00:00]} Kf5 {[%emt 0:00:14]} 49. Kc3 {[%emt 0:00:00]} Kg4 {[%emt 0:02:50]} (49... Rd7 {was worth a try.} 50. Re8 Kf6) 50. Kd4 {[%emt 0:00:00]} Bf5 {[%emt 0:00:53]} 51. Bd6 {[%emt 0:00:00]} Rd7 {[%emt 0:04:40]} 52. c5 {[%emt 0:00:00][%cal Bc4c5,Bc5c6][%mdl 32]} g6 {[%emt 0:03:10]} 53. b4 {[%emt 0:00:00][%cal Bb3b4,Bb4b5][%mdl 32]} Bc2 {[%emt 0:03:38]} 54. b5 {[%emt 0:00:00]} Bd1 {[%emt 0:01:00]} 55. Rf8 {[%emt 0:02:31]} Rh7 {[%emt 0:02:55]} (55... Ba4 $142 56. Rf4+ Kh3) 56. c6 {[%emt 0:01:03] Weighted Error Value: White=0.23 (precise) /Black=0.36  Mistake:       	White=8     	Black=12     Inaccurate:     	White=4     	Black=3      OK:         	White=18    	Black=13     Best:        	White=4     	Black=4      Strong:       	---       	Black=3      Brilliant:      	---       	Black=1} 1-0